bitfinex/quotes_BTCUSD_20250617
["timestamp","ask_amount","ask_price","bid_price","bid_amount"]
[1750140882868,0.52230767,107280.0,107270.0,0.24995246]
[1750140883072,0.52230767,107280.0,107270.0,0.25927429]
[1750140883308,0.33587964,107280.0,107270.0,0.26859595]
[1750140883930,0.10638933,107280.0,107270.0,0.26859595]
[1750140884108,0.33879272,107280.0,107270.0,0.26859595]
[1750140884312,0.33587964,107280.0,107270.0,0.26859595]
[1750140884664,0.52230767,107280.0,107270.0,0.25927429]
[1750140887000,0.51298645,107280.0,107270.0,0.23130853]
[1750140887205,0.29037483,107280.0,107270.0,0.22995263]
[1750140887402,0.51986514,107280.0,107270.0,0.22995263]
[1750140887550,0.51986514,107280.0,107270.0,0.23927446]
[1750140887951,0.51986514,107280.0,107270.0,0.2485962]
[1750140890826,0.51986514,107280.0,107270.0,0.23927446]
[1750140891540,0.51986514,107280.0,107270.0,0.22063071]
[1750140891745,0.53626514,107280.0,107270.0,0.22063071]
[1750140892127,0.53626514,107280.0,107270.0,0.21541178]
[1750140892335,0.53626514,107280.0,107270.0,0.22473361]
[1750140893486,0.30677483,107280.0,107270.0,0.22473361]
[1750140893686,0.53626514,107280.0,107270.0,0.22473361]
[1750140894604,0.53626514,107280.0,107270.0,0.20608986]
[1750140894845,0.53626514,107280.0,107270.0,0.21541195]
[1750140895264,0.30677483,107280.0,107270.0,0.21541195]
[1750140895479,0.53626514,107280.0,107270.0,0.21541195]
[1750140895962,0.55490707,107280.0,107270.0,0.22473396]
[1750140896181,0.54558619,107280.0,107270.0,0.19676768]
[1750140896399,0.54558619,107280.0,107270.0,0.20608986]
[1750140896613,0.54558619,107280.0,107270.0,0.22473396]
[1750140896879,0.54558619,107280.0,107270.0,0.23405588]
[1750140897080,0.36847956,107280.0,107270.0,0.234055]
[1750140897700,0.55490759,107280.0,107270.0,0.234055]
[1750140898656,0.55490759,107280.0,107270.0,0.20608942]
[1750140898793,0.55490759,107280.0,107270.0,0.1967675]
[1750140898994,0.55490759,107280.0,107270.0,0.20608951]
[1750140899757,0.54558645,107280.0,107270.0,0.20608951]
[1750140899945,0.54558645,107280.0,107270.0,0.01032227]
[1750140899946,0.52694374,107280.0,107270.0,0.01032227]
[1750140900159,0.52694374,107280.0,107270.0,0.20608986]
[1750140900508,0.75643405,107280.0,107270.0,0.001]
[1750140900935,1.08216612,107280.0,107270.0,0.001]
[1750140901132,1.17831534,107280.0,107270.0,0.001]
[1750140901610,1.08116612,107280.0,107270.0,0.001]
[1750140901743,0.26414333,107250.0,107240.0,0.5596879]
[1750140901955,0.53069033,107250.0,107240.0,0.3013889]
[1750140902350,0.52136711,107250.0,107240.0,0.31071334]
[1750140902568,0.52704363,107250.0,107240.0,0.31592975]
[1750140902779,0.54214363,107250.0,107240.0,0.31592975]
[1750140902991,0.08674993,107240.0,107230.0,0.23656549]
[1750140903206,0.32556511,107240.0,107230.0,0.48775966]
[1750140903428,0.09607463,107240.0,107230.0,0.50230051]
[1750140903636,0.1053995,107240.0,107230.0,0.50230051]
[1750140904053,0.1053995,107240.0,107230.0,0.47090051]
[1750140904734,0.11472385,107240.0,107230.0,0.32042051]
[1750140904989,0.11472385,107240.0,107230.0,0.47886051]
[1750140905694,0.12404803,107240.0,107230.0,0.47886051]
[1750140905926,0.12404803,107240.0,107230.0,0.48818635]
[1750140906168,0.53362576,107240.0,107230.0,0.11925502]
[1750140906386,0.53533815,107240.0,107230.0,0.02301326]
[1750140907042,0.54466276,107240.0,107230.0,0.23750466]
[1750140907293,0.09607436,107240.0,107230.0,0.24282979]
[1750140907522,0.11472315,107240.0,107230.0,0.4846201]
[1750140907767,0.12696213,107240.0,107230.0,0.22117944]
[1750140908007,0.11763804,107240.0,107230.0,0.23050484]
[1750140908251,0.11763804,107240.0,107230.0,0.24915519]
[1750140908494,0.53362592,107240.0,107230.0,0.38494484]
[1750140908735,0.34421416,107240.0,107230.0,0.40359528]
[1750140909460,0.11472385,107240.0,107230.0,0.40359528]
[1750140909688,0.11763804,107240.0,107230.0,0.40359528]
[1750140910143,0.34712835,107240.0,107230.0,0.39427015]
[1750140910368,0.34421416,107240.0,107230.0,0.39427015]
[1750140910823,0.53071173,107240.0,107230.0,0.39427015]
[1750140911051,0.52138738,107240.0,107230.0,0.38494484]
[1750140911563,0.51206277,107240.0,107230.0,0.38494484]
[1750140912631,0.33489007,107240.0,107230.0,0.39427006]
[1750140912888,0.33489007,107240.0,107230.0,0.39423006]
[1750140913868,0.33489007,107240.0,107230.0,0.38490484]
[1750140914005,0.33489007,107240.0,107230.0,0.39422997]
[1750140914207,0.32556485,107240.0,107230.0,0.39422997]
[1750140915471,0.09607454,107240.0,107230.0,0.39422997]
[1750140915682,0.32556485,107240.0,107230.0,0.39422997]
[1750140918700,0.33488894,107240.0,107230.0,0.39422997]
[1750140918910,0.08674958,107240.0,107230.0,0.39422997]
[1750140919108,0.48099876,107250.0,107240.0,0.20514688]
[1750140919322,0.00932427,107240.0,107230.0,0.51254512]
[1750140919548,0.02797298,107240.0,107230.0,0.47182016]
[1750140919903,0.06502967,107240.0,107230.0,0.47182016]
[1750140920124,0.06502967,107240.0,107230.0,0.47082016]
[1750140920581,0.07435437,107240.0,107230.0,0.47082016]
[1750140921321,0.06502967,107240.0,107230.0,0.47082016]
[1750140921739,0.07435437,107240.0,107230.0,0.47082016]
[1750140922143,0.07435428,107240.0,107230.0,0.47082016]
[1750140922330,0.07435428,107240.0,107230.0,0.47182016]
[1750140923374,0.06502958,107240.0,107230.0,0.70131047]
[1750140923996,0.05570514,107240.0,107230.0,0.70131047]
[1750140924201,0.05570514,107240.0,107230.0,0.73301047]
[1750140924412,0.04638087,107240.0,107230.0,0.73301047]
[1750140924871,0.06502967,107240.0,107230.0,0.71781047]
[1750140925085,0.06502958,107240.0,107230.0,0.70131047]
[1750140925379,0.07435419,107240.0,107230.0,0.47182016]
[1750140925575,0.08367889,107240.0,107230.0,0.47182016]
[1750140925780,0.07435419,107240.0,107230.0,0.47182016]
[1750140926005,0.08367889,107240.0,107230.0,0.47182016]
[1750140926423,0.07435419,107240.0,107230.0,0.47182016]
[1750140926960,0.08367889,107240.0,107230.0,0.47182016]
[1750140927594,0.06502958,107240.0,107230.0,0.47182016]
[1750140927954,0.07435411,107240.0,107230.0,0.47182016]
[1750140929008,0.08367881,107240.0,107230.0,0.47182016]
[1750140930140,0.08367942,107240.0,107230.0,0.47182016]
[1750140930344,0.30384494,107240.0,107230.0,0.47182016]
[1750140931427,0.29452024,107240.0,107230.0,0.47182016]
[1750140931624,0.30384494,107240.0,107230.0,0.47182016]
[1750140932958,0.07435463,107240.0,107230.0,0.47182016]
[1750140933106,0.29452024,107240.0,107230.0,0.47182016]
[1750140933302,0.30384494,107240.0,107230.0,0.47182016]
[1750140935138,0.0557054,107240.0,107230.0,0.47182016]
[1750140935350,0.0557054,107240.0,107230.0,0.70131047]
[1750140935555,0.29452041,107240.0,107230.0,0.47182016]
[1750140935757,0.0557054,107240.0,107230.0,0.70131047]
[1750140935959,0.06503001,107240.0,107230.0,0.70131047]
[1750140936692,0.5536866,107240.0,107230.0,0.30809564]
[1750140936899,0.55368703,107240.0,107230.0,0.46237564]
[1750140937035,0.55368703,107240.0,107230.0,0.47170121]
[1750140937234,0.55368703,107240.0,107230.0,0.21185388]
[1750140937444,0.54436259,107240.0,107230.0,0.36613388]
[1750140938497,0.54436259,107240.0,107230.0,0.37545945]
[1750140939412,0.54436259,107240.0,107230.0,0.38478493]
[1750140940038,0.54436259,107240.0,107230.0,0.39411033]
[1750140941134,0.54436259,107240.0,107230.0,0.38478493]
[1750140942026,0.54436259,107240.0,107230.0,0.39411033]
[1750140942996,0.54436259,107240.0,107230.0,0.38474493]
[1750140943129,0.54436259,107240.0,107230.0,0.37541945]
[1750140945461,0.54436259,107240.0,107230.0,0.38474493]
[1750140946837,0.31487228,107240.0,107230.0,0.39407015]
[1750140947046,0.35786467,107240.0,107230.0,0.40339528]
[1750140947253,0.37651346,107240.0,107230.0,0.40339528]
[1750140947468,0.13769845,107240.0,107230.0,0.40339528]
[1750140947649,0.13042315,107240.0,107230.0,0.40339528]
[1750140948797,0.13974794,107240.0,107230.0,0.40339528]
[1750140949589,0.36923825,107240.0,107230.0,0.40339528]
[1750140950233,0.36923903,107240.0,107230.0,0.40339528]
[1750140950450,0.56201225,107240.0,107230.0,0.39407015]
[1750140950857,0.37551468,107240.0,107230.0,0.40339528]
[1750140951075,0.36618981,107240.0,107230.0,0.40339528]
[1750140952105,0.34126502,107240.0,107230.0,0.40339528]
[1750140952302,0.11177471,107240.0,107230.0,0.40339528]
[1750140952668,0.10245001,107240.0,107230.0,0.40339528]
[1750140952822,0.09607436,107240.0,107230.0,0.40339528]
[1750140953026,0.10539906,107240.0,107230.0,0.40339528]
[1750140953638,0.09607436,107240.0,107230.0,0.40339528]
[1750140954041,0.10539906,107240.0,107230.0,0.40339528]
[1750140954266,0.35078937,107240.0,107230.0,0.40339528]
[1750140954464,0.36011416,107240.0,107230.0,0.40339528]
[1750140954671,0.38463903,107240.0,107230.0,0.40339528]
[1750140955903,0.36598937,107240.0,107230.0,0.40339528]
[1750140956114,0.37531416,107240.0,107230.0,0.40339528]
[1750140957122,0.14582385,107240.0,107230.0,0.40339528]
[1750140957328,0.36598937,107240.0,107230.0,0.40339528]
[1750140958036,0.37531416,107240.0,107230.0,0.40339528]
[1750140958447,0.38463903,107240.0,107230.0,0.40339528]
[1750140959268,0.37531416,107240.0,107230.0,0.40339528]
[1750140959504,0.36598937,107240.0,107230.0,0.40339528]
[1750140959678,0.32556467,107240.0,107230.0,0.40339528]
[1750140959898,0.34116467,107240.0,107230.0,0.24915528]
[1750140960063,0.35048937,107240.0,107230.0,0.40331528]
[1750140960467,0.11167436,107240.0,107230.0,0.40331528]
[1750140960663,0.11167384,107240.0,107230.0,0.40331528]
[1750140960870,0.10539837,107240.0,107230.0,0.40331528]
[1750140961221,0.11472307,107240.0,107230.0,0.40331528]
[1750140961456,0.05901446,107260.0,107250.0,0.02797098]
[1750140961673,0.05901403,107260.0,107250.0,0.45848232]
[1750140961893,0.06833699,107260.0,107250.0,0.38311201]
[1750140962308,0.06833699,107260.0,107250.0,0.61260232]
[1750140962531,0.06833699,107260.0,107250.0,0.38311201]
[1750140962740,0.07233699,107260.0,107250.0,0.38311201]
[1750140962946,0.06833699,107260.0,107250.0,0.38311201]
[1750140963360,0.08457383,107260.0,107250.0,0.22899201]
[1750140963571,0.50052694,107260.0,107250.0,0.37378861]
[1750140963839,0.5399474,107260.0,107250.0,0.37378861]
[1750140964078,0.5553474,107260.0,107250.0,0.37378861]
[1750140964567,0.51829071,107260.0,107250.0,0.37378861]
[1750140964772,0.5563474,107260.0,107250.0,0.37378861]
[1750140965479,0.54702461,107260.0,107250.0,0.36446495]
[1750140965693,0.04969254,107250.0,107240.0,0.23447072]
[1750140965911,0.04969254,107250.0,107240.0,0.49933333]
[1750140966458,0.08674914,107250.0,107240.0,0.50865812]
[1750140966667,0.0774254,107250.0,107240.0,0.50865812]
[1750140967087,0.08674871,107250.0,107240.0,0.58506843]
[1750140967294,0.09607219,107250.0,107240.0,0.77064843]
[1750140968418,0.09607211,107250.0,107240.0,0.77064843]
[1750140968912,0.10539568,107250.0,107240.0,0.77064843]
[1750140969126,0.11471934,107250.0,107240.0,0.77064843]
[1750140969544,0.12404317,107250.0,107240.0,0.50965812]
[1750140969753,0.12404317,107250.0,107240.0,0.34625394]
[1750140969963,0.57482864,107250.0,107240.0,0.48033394]
[1750140970175,0.35746294,107250.0,107240.0,0.48965821]
[1750140970388,0.09607263,107250.0,107240.0,0.48965821]
[1750140970718,0.10539646,107250.0,107240.0,0.48965821]
[1750140971008,0.10539637,107250.0,107240.0,0.48965821]
[1750140971544,0.09607263,107250.0,107240.0,0.48965821]
[1750140971753,0.10539646,107250.0,107240.0,0.48965821]
[1750140971990,0.09607263,107250.0,107240.0,0.48965821]
[1750140972480,0.09607263,107250.0,107240.0,0.48961821]
[1750140972736,0.10539646,107250.0,107240.0,0.32625394]
[1750140972944,0.11763423,107250.0,107240.0,0.48961829]
[1750140973152,0.34712454,107250.0,107240.0,0.48961829]
[1750140973357,0.36041077,107250.0,107240.0,0.33557829]
[1750140973562,0.36041077,107250.0,107240.0,0.48961829]
[1750140975630,0.36041077,107250.0,107240.0,0.49894256]
[1750140975968,0.35108677,107250.0,107240.0,0.49894256]
[1750140976551,0.36041069,107250.0,107240.0,0.49894256]
[1750140978626,0.34421069,107250.0,107240.0,0.49894256]
[1750140979029,0.10539646,107250.0,107240.0,0.49894256]
[1750140980019,0.10539637,107250.0,107240.0,0.49894256]
[1750140980798,0.1147202,107250.0,107240.0,0.49894256]
[1750140983088,0.07766351,107250.0,107240.0,0.49894256]
[1750140983238,0.1147202,107250.0,107240.0,0.49894256]
[1750140983540,0.11763397,107250.0,107240.0,0.49894256]
[1750140983740,0.13413397,107250.0,107240.0,0.49894256]
[1750140983943,0.15003397,107250.0,107240.0,0.49894256]
[1750140984157,0.3888482,107250.0,107240.0,0.49894256]
[1750140984322,0.38593443,107250.0,107240.0,0.49894256]
[1750140985209,0.38593443,107250.0,107240.0,0.49886256]
[1750140985485,0.09607228,107250.0,107240.0,0.34490256]
[1750140985644,0.09898606,107250.0,107240.0,0.72835287]
[1750140986439,0.08966249,107250.0,107240.0,0.72835287]
[1750140986648,0.0896624,107250.0,107240.0,0.75935287]
[1750140987061,0.09607193,107250.0,107240.0,0.75935287]
[1750140987805,0.07066871,107280.0,107270.0,0.19576707]
[1750140987947,0.04036871,107280.0,107270.0,0.69932156]
[1750140989004,0.0591521,107280.0,107270.0,0.69932156]
[1750140989417,0.09620879,107280.0,107270.0,0.69932156]
[1750140989618,0.10844296,107280.0,107270.0,0.46983125]
[1750140989828,0.10844296,107280.0,107270.0,0.47940281]
[1750140990028,0.09912182,107280.0,107270.0,0.47940281]
[1750140990264,0.09912182,107280.0,107270.0,0.32544281]
[1750140990450,0.04983114,107280.0,107270.0,0.70885312]
[1750140990898,0.04983105,107280.0,107270.0,0.47936281]
[1750140991114,0.08688774,107280.0,107270.0,0.47936281]
[1750140991337,0.04983105,107280.0,107270.0,0.47936281]
[1750140991802,0.06847263,107280.0,107270.0,0.47936281]
[1750140992021,0.10552932,107280.0,107270.0,0.47936281]
[1750140992465,0.06847255,107280.0,107270.0,0.47936281]
[1750140992701,0.10552924,107280.0,107270.0,0.47936281]
[1750140992940,0.09620836,107280.0,107270.0,0.47936281]
[1750140993603,0.10552924,107280.0,107270.0,0.47936281]
[1750140993821,0.10844226,107280.0,107270.0,0.47936281]
[1750140994038,0.11776331,107280.0,107270.0,0.47936281]
[1750140994701,0.10552924,107280.0,107270.0,0.47936281]
[1750140995128,0.1148502,107280.0,107270.0,0.47936281]
[1750140995456,0.12708444,107280.0,107270.0,0.47936281]
[1750140995566,0.54661859,107280.0,107270.0,0.12010488]
[1750140995836,0.54661859,107280.0,107270.0,0.01454085]
[1750140995837,0.29559507,107280.0,107270.0,0.01454085]
[1750140996087,0.05901307,107270.0,107260.0,0.37352931]
[1750140996330,0.31968139,107270.0,107260.0,0.46977107]
[1750140996570,0.54318349,107270.0,107260.0,0.46977116]
[1750140996839,0.54318349,107270.0,107260.0,0.48841647]
[1750140997060,0.31371517,107270.0,107260.0,0.48841647]
[1750140997994,0.13659177,107270.0,107260.0,0.48841647]
[1750140998203,0.1395047,107270.0,107260.0,0.497739]
[1750140998410,0.1395047,107270.0,107260.0,0.33453647]
[1750140998614,0.1395047,107270.0,107260.0,0.39217471]
[1750140998829,0.1395047,107270.0,107260.0,0.35488365]
[1750140999254,0.1395047,107270.0,107260.0,0.37352966]
[1750140999478,0.32595011,107270.0,107260.0,0.38285253]
[1750140999695,0.32303683,107270.0,107260.0,0.3642067]
[1750140999906,0.31371491,107270.0,107260.0,0.3642067]
[1750141000494,0.3043929,107270.0,107260.0,0.01454085]
[1750141000671,0.53386122,107270.0,107260.0,0.01454085]
[1750141002541,0.53386122,107270.0,107250.0,0.37756524]
[1750141002542,0.04036871,107260.0,107250.0,0.19575453]
[1750141002754,0.30692469,107260.0,107250.0,0.30658679]
[1750141003028,0.04036871,107250.0,107240.0,0.3075108]
[1750141003244,0.0774254,107250.0,107240.0,0.54413941]
[1750141003468,0.09607236,107250.0,107240.0,0.56278847]
[1750141004117,0.10539619,107250.0,107240.0,0.56278847]
[1750141004558,0.10539619,107250.0,107240.0,0.56578847]
[1750141004794,0.10539654,107250.0,107240.0,0.49155992]
[1750141005444,0.11472054,107250.0,107240.0,0.50088427]
[1750141006074,0.30120072,107250.0,107240.0,0.49155992]
[1750141006287,0.30120072,107250.0,107240.0,0.49455992]
[1750141007113,0.30120072,107250.0,107240.0,0.50388427]
[1750141007629,0.11472054,107250.0,107240.0,0.50388427]
[1750141007842,0.11472054,107250.0,107240.0,0.51320854]
[1750141008506,0.08674871,107250.0,107240.0,0.51320854]
[1750141008720,0.09607228,107250.0,107240.0,0.74267686]
[1750141008954,0.08674871,107250.0,107240.0,0.75857686]
[1750141009166,0.08674862,107250.0,107240.0,0.77447686]
[1750141009595,0.09607202,107250.0,107240.0,0.77447686]
[1750141010014,0.08674862,107250.0,107240.0,0.77447686]
[1750141010229,0.1053955,107250.0,107240.0,0.54500854]
[1750141010439,0.1053955,107250.0,107240.0,0.77447686]
[1750141011092,0.11471924,107250.0,107240.0,0.74267686]
[1750141011298,0.1053955,107250.0,107240.0,0.74267686]
[1750141012081,0.10539541,107250.0,107240.0,0.74267686]
[1750141012417,0.11471907,107250.0,107240.0,0.74267686]
[1750141012560,0.10539541,107250.0,107240.0,0.74267686]
[1750141013571,0.11471898,107250.0,107240.0,0.74267686]
[1750141013773,0.09607193,107250.0,107240.0,0.74267686]
[1750141014189,0.10539541,107250.0,107240.0,0.74267686]
[1750141015175,0.09607193,107250.0,107240.0,0.74267686]
[1750141015390,0.10539541,107250.0,107240.0,0.74267686]
[1750141015905,0.09607193,107250.0,107240.0,0.74267686]
[1750141016126,0.10539533,107250.0,107240.0,0.74267686]
[1750141016436,0.10539533,107250.0,107240.0,0.51320854]
[1750141016682,0.10539533,107250.0,107240.0,0.74267686]
[1750141016919,0.10539533,107250.0,107240.0,0.51320854]
[1750141017792,0.11471881,107250.0,107240.0,0.51320854]
[1750141018089,0.11471925,107250.0,107240.0,0.51320854]
[1750141018223,0.10539559,107250.0,107240.0,0.51320854]
[1750141018934,0.0774254,107250.0,107240.0,0.77517686]
[1750141019182,0.08674862,107250.0,107240.0,0.77517686]
[1750141019412,0.0774254,107250.0,107240.0,0.77517686]
[1750141020270,0.10539577,107250.0,107240.0,0.74267686]
[1750141020495,0.10539568,107250.0,107240.0,0.74267686]
[1750141020705,0.09607211,107250.0,107240.0,0.74267686]
[1750141020932,0.0774254,107250.0,107240.0,0.51320854]
[1750141021171,0.08674862,107250.0,107240.0,0.52860854]
[1750141021392,0.0774254,107250.0,107240.0,0.52860854]
[1750141021624,0.0774254,107250.0,107240.0,0.54460854]
[1750141022108,0.0774254,107250.0,107240.0,0.77407686]
[1750141022915,0.08674871,107250.0,107240.0,0.77407686]
[1750141023142,0.0774254,107250.0,107240.0,0.77407686]
[1750141023995,0.08674871,107250.0,107240.0,0.77407686]
[1750141024195,0.0774254,107250.0,107240.0,0.77407686]
[1750141024465,0.08674871,107250.0,107240.0,0.77407686]
[1750141024976,0.0774254,107250.0,107240.0,0.77407686]
[1750141028403,0.0774254,107250.0,107240.0,0.51320854]
[1750141028621,0.09607193,107250.0,107240.0,0.74267686]
[1750141029038,0.08674862,107250.0,107240.0,0.51320854]
[1750141029454,0.0774254,107250.0,107240.0,0.51320854]
[1750141029678,0.0774254,107250.0,107240.0,0.74267686]
[1750141030637,0.08674862,107250.0,107240.0,0.74267686]
[1750141030842,0.07159288,107250.0,107240.0,0.74267686]
[1750141031064,0.08091619,107250.0,107240.0,0.35936854]
[1750141031346,0.10593976,107250.0,107240.0,0.51308854]
[1750141032033,0.10593967,107250.0,107240.0,0.51308854]
[1750141032259,0.11526341,107250.0,107240.0,0.51308854]
[1750141032480,0.32636742,107250.0,107240.0,0.3219295]
[1750141032701,0.13988724,107250.0,107240.0,0.48529377]
[1750141033904,0.13988794,107250.0,107240.0,0.48529377]
[1750141034884,0.13988863,107250.0,107240.0,0.48529394]
[1750141035100,0.13988863,107250.0,107240.0,0.50399764]
[1750141035320,0.13056463,107250.0,107240.0,0.51332191]
[1750141036136,0.31995862,107250.0,107240.0,0.33125394]
[1750141036328,0.31704481,107250.0,107240.0,0.48525394]
[1750141036669,0.13056463,107250.0,107240.0,0.49457821]
[1750141036814,0.13347844,107250.0,107240.0,0.49457821]
[1750141037658,0.10550669,107250.0,107240.0,0.49457821]
[1750141037906,0.09023994,107250.0,107240.0,0.72404653]
[1750141038105,0.09956377,107250.0,107240.0,0.49457821]
[1750141038249,0.11907758,107250.0,107240.0,0.72404653]
[1750141038625,0.11907758,107250.0,107240.0,0.50390138]
[1750141039445,0.14480158,107250.0,107240.0,0.48525394]
[1750141039667,0.13547758,107250.0,107240.0,0.49457829]
[1750141039879,0.10750669,107250.0,107240.0,0.50390256]
[1750141040104,0.03705669,107250.0,107240.0,0.73337088]
[1750141040304,0.09024003,107250.0,107240.0,0.73337088]
[1750141040444,0.09023994,107250.0,107240.0,0.73337088]
[1750141040648,0.08091637,107250.0,107240.0,0.73337088]
[1750141041257,0.09023994,107250.0,107240.0,0.73337088]
[1750141041465,0.09023994,107250.0,107240.0,0.73369088]
[1750141041673,0.08091637,107250.0,107240.0,0.73369088]
[1750141041890,0.07159297,107250.0,107240.0,0.73369088]
[1750141042099,0.08091637,107250.0,107240.0,0.74305496]
[1750141043431,0.07159297,107250.0,107240.0,0.74305496]
[1750141043855,0.08091645,107250.0,107240.0,0.74305496]
[1750141044071,0.09024011,107250.0,107240.0,0.74305496]
[1750141044284,0.07159297,107250.0,107240.0,0.74305496]
[1750141044502,0.08091637,107250.0,107240.0,0.74305496]
[1750141044738,0.09956368,107250.0,107240.0,0.74305496]
[1750141044957,0.09023994,107250.0,107240.0,0.74305496]
[1750141045603,0.08091637,107250.0,107240.0,0.74305496]
[1750141045810,0.09023985,107250.0,107240.0,0.74305496]
[1750141046043,0.09956342,107250.0,107240.0,0.74305496]
[1750141046257,0.09023985,107250.0,107240.0,0.74305496]
[1750141046678,0.09956351,107250.0,107240.0,0.74305496]
[1750141047167,0.09956342,107250.0,107240.0,0.74305496]
[1750141047824,0.09956342,107250.0,107240.0,0.35926664]
[1750141048031,0.12428725,107250.0,107240.0,0.51338664]
[1750141048230,0.14058725,107250.0,107240.0,0.51338664]
[1750141048436,0.14058786,107250.0,107240.0,0.51402664]
[1750141049626,0.31774464,107250.0,107240.0,0.4766895]
[1750141049826,0.30842116,107250.0,107240.0,0.4766895]
[1750141050049,0.30842116,107250.0,107240.0,0.48601394]
[1750141050468,0.30842116,107250.0,107240.0,0.33125394]
[1750141050683,0.29909759,107250.0,107240.0,0.31260497]
[1750141050893,0.51924208,107250.0,107240.0,0.006]
[1750141051123,0.7487104,107250.0,107240.0,0.006]
[1750141051559,0.51924208,107250.0,107240.0,0.006]
[1750141052430,0.51924208,107250.0,107240.0,0.003]
[1750141052886,0.0531889,107230.0,107220.0,0.40254445]
[1750141053102,0.09024559,107230.0,107220.0,0.49878621]
[1750141053749,0.07159462,107230.0,107220.0,0.73744698]
[1750141054172,0.07159462,107230.0,107220.0,0.73891939]
[1750141054377,0.06226966,107230.0,107220.0,0.73891939]
[1750141054798,0.06226966,107230.0,107220.0,0.50945107]
[1750141055010,0.07159471,107230.0,107220.0,0.73891939]
[1750141055234,0.08091984,107230.0,107220.0,0.74091939]
[1750141055434,0.07159471,107230.0,107220.0,0.74091939]
[1750141055858,0.07159462,107230.0,107220.0,0.74091939]
[1750141056738,0.08091984,107230.0,107220.0,0.74091939]
[1750141057156,0.08091975,107230.0,107220.0,0.74091939]
[1750141058019,0.07159462,107230.0,107220.0,0.74091939]
[1750141058848,0.08091975,107230.0,107220.0,0.74091939]
[1750141059070,0.07159462,107230.0,107220.0,0.74091939]
[1750141060110,0.08091975,107230.0,107220.0,0.74091939]
[1750141060716,0.07159462,107230.0,107220.0,0.74091939]
[1750141061901,0.08091975,107230.0,107220.0,0.74091939]
[1750141062318,0.09024497,107230.0,107220.0,0.74091939]
[1750141062518,0.09024497,107230.0,107220.0,0.33809261]
[1750141062519,0.14341086,107230.0,107220.0,0.33809261]
[1750141062729,0.32992643,107230.0,107220.0,0.4925727]
[1750141062940,0.32701212,107230.0,107220.0,0.48324661]
[1750141063146,0.3176869,107230.0,107220.0,0.32876661]
[1750141063345,0.52850434,107230.0,107220.0,0.01801326]
[1750141063545,0.53782007,107230.0,107220.0,0.00347241]
[1750141063853,0.52850434,107230.0,107220.0,0.15799241]
[1750141064391,0.52850434,107230.0,107220.0,0.16731902]
[1750141064589,0.29903602,107230.0,107220.0,0.20865791]
[1750141067440,0.28971036,107230.0,107220.0,0.20865791]
[1750141067629,0.28038462,107230.0,107220.0,0.19933138]
[1750141067871,0.28038462,107230.0,107220.0,0.01279902]
[1750141068592,0.28038462,107230.0,107220.0,0.20865791]
[1750141072144,0.28038462,107230.0,107220.0,0.19933138]
[1750141072862,0.28038462,107230.0,107220.0,0.20865791]
[1750141073696,0.28971019,107230.0,107220.0,0.22731027]
[1750141073926,0.1218462,107230.0,107220.0,0.22731027]
[1750141074159,0.1218462,107230.0,107220.0,0.23663627]
[1750141074800,0.30836116,107230.0,107220.0,0.21798418]
[1750141075863,0.30836116,107230.0,107220.0,0.23663645]
[1750141076071,0.1218462,107230.0,107220.0,0.23663584]
[1750141076279,0.13117194,107230.0,107220.0,0.23663584]
[1750141076490,0.32060145,107230.0,107220.0,0.21798375]
[1750141076699,0.3176869,107230.0,107220.0,0.21798375]
[1750141077409,0.3176869,107230.0,107220.0,0.22730984]
[1750141077618,0.12184559,107230.0,107220.0,0.23663584]
[1750141077852,0.13117125,107230.0,107220.0,0.23663584]
[1750141078271,0.14049699,107230.0,107220.0,0.23663584]
[1750141078682,0.30836159,107230.0,107220.0,0.21798375]
[1750141079135,0.29903602,107230.0,107220.0,0.1993313]
[1750141079345,0.28971036,107230.0,107220.0,0.20865774]
[1750141079576,0.28971036,107230.0,107220.0,0.21798409]
[1750141079810,0.28971036,107230.0,107220.0,0.22731027]
[1750141080257,0.12184593,107230.0,107220.0,0.23663583]
[1750141080707,0.12144541,107230.0,107220.0,0.23663583]
[1750141080916,0.14009638,107230.0,107220.0,0.23663583]
[1750141081131,0.31087571,107230.0,107220.0,0.20865756]
[1750141081353,0.1214462,107230.0,107220.0,0.23663601]
[1750141081796,0.30796116,107230.0,107220.0,0.22731001]
[1750141083200,0.28931028,107230.0,107220.0,0.00347241]
[1750141083440,0.51900848,107230.0,107220.0,0.00347241]
[1750141083657,0.51900848,107230.0,107220.0,0.01279902]
[1750141084151,0.51900848,107230.0,107220.0,0.02212555]
[1750141084367,0.51900848,107230.0,107220.0,0.20865791]
[1750141084579,0.51900848,107230.0,107220.0,0.01279902]
[1750141084790,0.50968282,107230.0,107220.0,0.01279902]
[1750141084996,0.27998462,107230.0,107220.0,0.01279902]
[1750141085283,0.27998462,107230.0,107220.0,0.00347241]
[1750141087956,0.27998462,107230.0,107220.0,0.01279902]
[1750141088290,0.27998462,107230.0,107220.0,0.20865791]
[1750141088502,0.27998462,107230.0,107220.0,0.21798435]
[1750141088929,0.27998462,107230.0,107220.0,0.01279902]
[1750141089153,0.27998462,107230.0,107220.0,0.20865782]
[1750141089457,0.27998462,107230.0,107220.0,0.21798417]
[1750141092661,0.27998462,107230.0,107220.0,0.19933138]
[1750141092884,0.27998462,107230.0,107220.0,0.20865791]
[1750141093090,0.27998462,107230.0,107220.0,0.21798426]
[1750141093515,0.27998462,107230.0,107220.0,0.20865791]
[1750141094414,0.24878462,107230.0,107220.0,0.20865791]
[1750141094789,0.24878462,107230.0,107220.0,0.23663697]
[1750141095491,0.24878462,107230.0,107220.0,0.21798435]
[1750141095706,0.26448462,107230.0,107220.0,0.21798435]
[1750141095931,0.26448462,107230.0,107220.0,0.2273107]
[1750141096138,0.24878462,107230.0,107220.0,0.2273107]
[1750141096593,0.24878462,107230.0,107220.0,0.23663697]
[1750141097370,0.24878462,107230.0,107220.0,0.2273107]
[1750141097613,0.24878462,107230.0,107220.0,0.23663697]
[1750141098059,0.24878462,107230.0,107220.0,0.20865791]
[1750141098271,0.26418462,107230.0,107220.0,0.20865791]
[1750141098529,0.28038462,107230.0,107220.0,0.01279902]
[1750141099617,0.28038462,107230.0,107220.0,0.20865791]
[1750141099841,0.28038462,107230.0,107220.0,0.21798426]
[1750141100373,0.28038462,107230.0,107220.0,0.20865791]
[1750141101106,0.32094462,107230.0,107220.0,0.20865791]
[1750141102748,0.32094462,107230.0,107220.0,0.00347241]
[1750141103187,0.55066495,107230.0,107220.0,0.00347241]
[1750141104242,0.55066495,107230.0,107220.0,0.19000477]
[1750141104482,0.32094462,107230.0,107220.0,0.19933121]
[1750141104694,0.47498462,107230.0,107220.0,0.19933121]
[1750141105137,0.47498462,107230.0,107220.0,0.01279902]
[1750141105805,0.47498462,107230.0,107220.0,0.00347241]
[1750141106895,0.70470961,107230.0,107220.0,0.00347241]
[1750141110046,0.9344346,107230.0,107220.0,0.00347241]
[1750141110260,0.70470961,107230.0,107220.0,0.00347241]
[1750141110484,0.9344346,107230.0,107220.0,0.00347241]
[1750141110703,1.2744346,107230.0,107220.0,0.00147241]
[1750141111416,1.37067636,107230.0,107220.0,0.00147241]
[1750141112396,1.54251057,107230.0,107220.0,0.00047241]
[1750141112609,1.71926779,107230.0,107220.0,0.00047241]
[1750141113041,1.74820743,107230.0,107220.0,0.00047241]